Cogmind - Beta 17.1 @@@ ROGUE MODE // 2026.08.27 @ 22:48:10 Player: KTG-V3 Result: Heading to fleet! Performance ------------- Evolutions (9) 4500 Regions Visited (21) 4200 Robots Destroyed (549) 2745 Value Destroyed (25689) 25689 Prototype IDs (368) 7360 Alien Tech Used (11) 2200 Bonus (38382) 38382 TOTAL SCORE: 85076 Bonus ------- Triggered High Security 500 High Alert Combat Kills 6219 Follower Combat Kills 1984 Met Warlord at Base 500 MAIN.C Attacked Warlord 500 Built Enhanced Grunts 300 Used Core Reset Matrix 3000 Met Warlord at Research 2000 Destroyed MAIN.C Guards 500 Met MAIN.C 5000 Destroyed MAIN.C Shell 5000 Destroyed MAIN.C 10000 Win 3000 Friendly Fire -121 Cogmind --------- Core Integrity 1213/1600 Matter 277/600 Energy 612/630 System Corruption 0% +Membrane Temperature Cool (10) +ITN Movement Treading (151) Location To Fleet Rendezvous Parts ------- > --- POWER (3) -------- Reinforced Quantum Reactor Zero-point Reactor Zero-point Reactor > --- PROPULSION (7) --- High-density Centrium Heavy Treads High-density Centrium Heavy Treads Experimental Biometal Medium Treads > --- UTILITY (11) ----- Coolant Network Huge Storage Unit Improved Matter Compressor Advanced Targeting Computer Advanced Weapon Cycler Heavy Regenerative Plating > --- WEAPON (4) ------- Enhanced Nova Cannon Enhanced Nova Cannon Enhanced Hardcell Cannon Graviton Cannon > --- INVENTORY (25) --- Light Quantum Reactor Light Quantum Reactor Experimental Cooling System Experimental Cooling System Compact Battery (200) Experimental Energy Well (600) Experimental Energy Well (600) Experimental Matter Compressor (5) Long-range Terrain Scanner Graphene Brace Thermal Barrier Experimental EM Shield Experimental Shield Generator Heavy Gatling Laser Enhanced Quantum Rifle Enhanced Quantum Rifle Enhanced Hardcell Cannon Enhanced Hardcell Cannon Enhanced Hardcell Cannon Hellfire Missile Launcher Peak State ------------ > --- POWER ------------ Reinforced Quantum Reactor Zero-point Reactor Zero-point Reactor > --- PROPULSION ------- Advanced Heavy Treads High-density Centrium Heavy Treads High-density Centrium Heavy Treads Experimental Biometal Medium Treads > --- UTILITY ---------- Coolant Network Huge Storage Unit Advanced Targeting Computer Experimental Core Analyzer Advanced Weapon Cycler Heavy Regenerative Plating Graphene Brace Experimental EM Shield Experimental Force Field > --- WEAPON ----------- Enhanced Nova Cannon Core Cannon Graviton Cannon > --- INVENTORY -------- Light Quantum Reactor Light Quantum Reactor High-density Centrium Heavy Treads Experimental Cooling System Experimental Cooling System Compact Battery Experimental Energy Well Experimental Energy Well Improved Matter Compressor Experimental Matter Compressor Long-range Terrain Scanner Thermal Barrier Experimental Shield Generator Subatomic Replicator Heavy Gatling Laser Enhanced Quantum Rifle Enhanced Quantum Rifle Enhanced Nova Cannon Enhanced Hardcell Cannon Enhanced Hardcell Cannon Enhanced Hardcell Cannon Enhanced Hardcell Cannon Hellfire Missile Launcher [Rating: 246] Favorites ----------- Power F-cell Engine Engine F-cell Engine Power Core Light Neutrino Core Reactor Reinforced Quantum Reactor Propulsion Light Treads Treads Light Treads Leg Flexi-carbon Leg Wheel Armored Wheel Hover Unit Improved Antigrav System Utility Huge Storage Unit Device Improved Sensor Array Storage Huge Storage Unit Processor Improved Signal Interpreter Hackware Hacking Suite Protection Centrium Medium Armor Plating Artifact Phase Armor Weapon Enhanced Nova Cannon Energy Gun Enhanced Quantum Rifle Energy Cannon Enhanced Nova Cannon Ballistic Gun Assault Rifle Ballistic Cannon Light Antimatter Cannon Launcher Mini Grenade Launcher Special Weapon Advanced Remote Datajack Impact Weapon Hammer Slashing Weapon Plasma Sword Piercing Weapon Heavy Pick Special Melee Weapon Improved Datajack Build | -11 -10 -10 -9 -9 -8 -7 -6 -5 -5 -5 -5 -4 -4 -4 -3 -3 -2 -2 -2 -1 -1 ------- Run | Yrd Mat Min Mat Min Mat Fac Fac Fac Ext Cet Arc Fac Upp War Pro Res Res Qua Sec Acc Com Slots Evolved 18 | . . . 2 . 2 2 2 2 . . . 2 . . . 2 2 . . 2 . Power 2 | . . . . . . . . . . . . 1 . . . . . . . 1 . Propulsion 5 | . . . 1 . . 1 . 1 . . . . . . . 1 1 . . . . Utility 9 | . . . . . 1 1 2 1 . . . 1 . . . 1 1 . . 1 . Weapon 2 | . . . 1 . 1 . . . . . . . . . . . . . . . . Parts Attached 406 | 6 9 1 33 1 16 43 30 21 17 6 9 13 . 12 4 55 35 44 16 16 19 Power 52 | 1 2 . 7 . 3 6 2 1 1 . 1 2 . . 1 9 3 4 1 3 5 Engine 23 | 1 2 . 7 . 3 6 2 . 1 . . . . . . . . . . . 1 Core 4 | . . . . . . . . 1 . . . 1 . . . 1 . 1 . . . Reactor 25 | . . . . . . . . . . . 1 1 . . 1 8 3 3 1 3 4 Propulsion 91 | 2 . . 8 1 5 16 9 6 5 4 2 2 . 2 . 17 8 1 1 . 2 Treads 54 | 2 . . 3 1 5 7 4 5 5 4 2 2 . 2 . 3 5 1 1 . 2 Leg 8 | . . . . . . 1 . . . . . . . . . 7 . . . . . Wheel 19 | . . . 5 . . 8 5 1 . . . . . . . . . . . . . Hover 10 | . . . . . . . . . . . . . . . . 7 3 . . . . Flight . | . . . . . . . . . . . . . . . . . . . . . . Utility 184 | 1 4 . 6 . 5 16 15 10 7 1 5 9 . 9 2 22 20 26 9 8 9 Device 92 | . 1 . 2 . 2 5 5 7 3 . 4 6 . 3 1 15 6 18 4 8 2 Storage 23 | 1 2 . 1 . . 2 2 . 1 . . 2 . 1 . 2 4 . . . 5 Processor 19 | . 1 . 1 . . 2 2 . . . . . . 2 1 1 5 2 1 . 1 Hackware 12 | . . . . . . 3 1 2 1 . 1 1 . . . 1 1 . 1 . . Protection 37 | . . . 2 . 3 4 5 1 2 1 . . . 3 . 3 4 5 3 . 1 Artifact 1 | . . . . . . . . . . . . . . . . . . 1 . . . Weapon 79 | 2 3 1 12 . 3 5 4 4 4 1 1 . . 1 1 7 4 13 5 5 3 Energy Gun 17 | 1 1 1 2 . . . . . . . . . . . . 1 2 6 2 1 . Energy Cannon 12 | . . . 1 . . . . 1 . 1 . . . . . . 1 1 3 3 1 Ballistic Gun 6 | 1 1 . 2 . . . . . . . . . . . . 1 . 1 . . . Ballistic Cannon 6 | . . . . . . . . . . . . . . . . 1 . 3 . 1 1 Launcher 6 | . 1 . 2 . . 1 . . . . . . . . 1 . . . . . 1 Special Weapon 2 | . . . . . . . . . . . . . . . . 2 . . . . . Impact Weapon 13 | . . . 3 . 3 2 1 2 1 . . . . . . . . 1 . . . Slashing Weapon 10 | . . . 1 . . 1 2 1 3 . . . . . . 1 . 1 . . . Piercing Weapon 4 | . . . . . . 1 1 . . . . . . 1 . . 1 . . . . Special Melee Weapon 3 | . . . 1 . . . . . . . 1 . . . . 1 . . . . . Unidentified Prototypes 55 | . . . 4 . . 3 1 4 . 2 . 1 . 4 1 5 9 11 3 3 4 Corrupted Parts 15 | . . . . 1 1 2 . . . 2 2 . . 1 2 1 1 . 2 . . System Corruption 66 | . . . . 14 1 6 . . . 13 4 . . 2 12 2 3 . 9 . . Parts Lost 98 | . . . 2 1 8 17 5 9 5 4 . 2 . . 1 34 . . 3 1 6 Power 11 | . . . . . . 2 1 . . . . . . . 1 5 . . 1 1 . Propulsion 45 | . . . 1 1 4 10 3 4 5 3 . . . . . 10 . . 1 . 3 Utility 22 | . . . 1 . 3 2 1 2 . . . 1 . . . 10 . . 1 . 1 Weapon 20 | . . . . . 1 3 . 3 . 1 . 1 . . . 9 . . . . 2 Highest Loss Streak 6 | . . . 1 1 3 6 2 2 2 4 . 1 . . 1 6 . . 1 1 3 To Critical Strikes 3 | . . . . . . 1 . . . 2 . . . . . . . . . . . Average Backups 20 | 1 12 15 19 19 18 21 22 19 18 19 18 20 24 23 23 21 10 20 22 22 22 Power 1 | . 1 1 1 1 2 1 1 1 1 1 2 1 2 2 2 2 1 2 . . 1 Propulsion 2 | . 2 2 1 4 1 1 2 2 3 4 3 3 3 3 3 1 1 1 1 1 . Utility 10 | . 3 6 6 6 8 11 14 13 11 10 10 12 15 15 15 15 2 4 8 10 9 Weapon 5 | . 4 5 8 8 6 5 4 2 3 3 3 3 4 3 3 2 4 10 10 10 9 Tool/Special . | . . . . . . . . . . . . . . . . . . . . . . Unused Backups 74 | . 3 . 11 . 2 5 10 1 4 2 4 2 . 3 . 6 3 8 . 5 5 Power 10 | . 2 . . . . . . . . . . 1 . . . 2 . 3 . . 2 Propulsion 20 | . 1 . . . 2 . 2 1 3 2 4 . . 2 . 1 1 1 . . . Utility 19 | . . . 3 . . 1 5 . 1 . . 1 . . . 3 2 1 . 1 1 Weapon 24 | . . . 8 . . 4 2 . . . . . . 1 . . . 3 . 4 2 Tool/Special 1 | . . . . . . . 1 . . . . . . . . . . . . . . Average Slot Usage (%) 90 | . 98 100 96 99 96 90 99 95 99 89 86 88 89 88 88 85 89 80 77 79 78 Engine 4 | . 14 14 10 11 9 6 6 . . 5 4 5 5 5 5 . . . . . . Reactor 3 | . . . . . . . . . . . . 5 5 5 5 5 8 8 8 11 12 Treads 17 | . 27 28 20 32 25 9 17 27 28 19 17 15 15 15 15 11 9 17 16 16 15 Wheel 3 | . . . 11 . . 15 8 . . . . . . . . . . . . . . Device 11 | . . . 5 . 6 4 6 9 13 9 14 19 21 16 20 22 18 16 12 15 19 Storage 6 | . 14 14 11 11 9 7 6 5 7 11 7 5 5 6 5 5 2 4 4 4 4 Processor 8 | . 12 14 1 . . 5 12 11 11 11 11 10 10 10 10 7 11 12 13 12 7 Hackware 1 | . . . . . . 6 5 5 . . . . . . . . 2 . . . . Protection 4 | . . . 3 11 10 3 6 5 5 6 4 5 5 6 5 4 4 3 3 4 4 Energy Gun 2 | . 13 2 5 . . . . . . . . . . . . . 7 10 11 3 . Energy Cannon 1 | . . . . . . . . . . . . . . . . . 3 3 5 12 13 Ballistic Gun 1 | . 13 25 5 . 1 . . . . . . . . . . . . . . . . Impact Weapon 7 | . . . 17 22 23 20 6 5 9 11 11 10 10 8 5 1 . . . . . Slashing Weapon 5 | . . . 1 11 8 4 17 7 12 9 10 6 5 5 5 2 . . . . . Piercing Weapon 2 | . . . . . . 2 1 4 . . . 3 5 6 9 6 2 1 . . . Peak Build Rating 246 | 6 8 8 21 19 27 42 60 73 77 102 109 128 127 142 134 160 190 232 221 239 246 Average Rating 97 | 4 7 8 16 18 23 33 51 63 74 92 104 122 123 129 129 128 171 202 207 227 229 On Entrance 91 | . 6 8 8 19 19 24 34 54 71 74 102 106 127 125 134 133 118 190 221 209 239 Avg Prop Armor Cover (%) 10 | . . . 13 . 7 17 15 1 . . . . . . . 5 2 2 2 2 2 Naked Turns . | . . . . . . . . . . . . . . . . . . . . . . Heaviest Build 249 | 11 30 29 64 59 66 105 118 77 91 91 93 151 150 148 141 170 166 209 209 245 249 Greatest Support 305 | 40 40 40 60 60 63 82 98 137 137 180 188 188 187 187 187 215 305 305 290 290 290 Greatest Overweight (x) 9 | . 1 . 5 1 1 7 9 . . . . . . . . 7 1 . . . 1 Average Overweight (x) . | . . . 1 . . 1 2 . . . . . . . . . . . . . . Largest Inventory Capacity 25 | 8 15 15 20 20 20 25 25 20 20 20 20 25 25 25 25 25 25 25 25 25 25 Average Capacity 22 | 7 13 15 19 20 20 23 23 20 20 20 20 23 25 25 25 24 14 25 25 25 25 Most Carried 25 | 4 15 15 20 20 20 25 25 20 20 20 20 25 25 25 25 25 21 25 25 25 25 Average Carried 20 | 1 12 15 19 19 18 21 22 19 18 19 19 21 24 24 24 22 10 23 24 24 23 Final Capacity 25 | 8 15 15 20 20 20 25 20 20 20 20 20 25 25 25 25 5 25 25 25 25 25 Final Carried 25 | 4 15 15 20 19 20 25 19 20 20 20 20 25 25 25 24 5 20 25 25 25 20 Class Distribution -------------------- 27% | Mutant 21% | Scavenger-Gladiator 18% | Scavenger-Mutant 4% | Alien-Skirmisher 4% | Gladiator 4% | Alien-Tank 3% | Scavenger-Assassin Dominant Class ---------------- Mutant | -10/Materials Mutant | -10/Mines Mutant | -9/Materials Scavenger-Mutant | -9/Mines Mutant | -8/Materials Mutant | -7/Factory Mutant | -6/Factory Scavenger-Gladiator | -5/Factory Gladiator | -5/Extension Scavenger-Mutant | -5/Cetus Scavenger-Mutant | -5/Archives Scavenger-Gladiator | -4/Factory Scavenger-Gladiator | -4/Upper Caves Scavenger-Gladiator | -4/Warlord Scavenger-Gladiator | -3/Proximity Caves Scavenger-Gladiator | -3/Research Scavenger-Assassin | -2/Research Skirmisher | -2/Quarantine Alien-Tank | -2/Section 7 Alien-Skirmisher | -1/Access Scavenger-Tank | -1/Command Resources | -11 -10 -10 -9 -9 -8 -7 -6 -5 -5 -5 -5 -4 -4 -4 -3 -3 -2 -2 -2 -1 -1 ----------- Run | Yrd Mat Min Mat Min Mat Fac Fac Fac Ext Cet Arc Fac Upp War Pro Res Res Qua Sec Acc Com Matter Collected 10633 | 250 581 122 709 25 468 744 954 399 308 120 187 242 59 222 129 1787 817 953 609 181 767 Remotely . | . . . . . . . . . . . . . . . . . . . . . . Salvage Created 29569 | . 603 153 2547 120 1388 2449 1970 1145 1367 236 320 208 100 . 639 4413 208 1854 2878 2134 4837 Parts 1205 | . 47 19 73 6 49 93 100 45 25 12 18 8 4 . 20 224 2 79 143 92 146 Haulers Intercepted 18 | . 2 . 5 . 1 5 2 1 . . . 1 . . . . . . . 1 . Recyclers Shooed 11 | . 1 . 1 . 2 . . . . . . . . . . 3 . . . . 4 Parts Field Recycled . | . . . . . . . . . . . . . . . . . . . . . . Retrieved Matter . | . . . . . . . . . . . . . . . . . . . . . . Parts Self-Destructed 16 | . . . . . . . . . . . . . 11 . 5 . . . . . . Prevented 13 | . . . . . . . . . . . . . 1 . 12 . . . . . . Parts Restored . | . . . . . . . . . . . . . . . . . . . . . . Kills | -11 -10 -10 -9 -9 -8 -7 -6 -5 -5 -5 -5 -4 -4 -4 -3 -3 -2 -2 -2 -1 -1 ------- Run | Yrd Mat Min Mat Min Mat Fac Fac Fac Ext Cet Arc Fac Upp War Pro Res Res Qua Sec Acc Com Combat Hostiles Destroyed 385 | . 13 9 35 3 32 28 23 9 19 2 . 1 1 . 6 55 3 20 39 25 62 Melee 130 | . . . 14 3 14 17 15 6 12 1 . 1 1 . 1 45 . . . . . Guns 57 | . 10 5 1 . . . . . . . . . . . . 6 2 14 17 2 . Cannons 98 | . . . . . . . . . . . . . . . . . 1 3 20 22 52 AOE 39 | . 3 4 8 . 11 1 3 . . . . . . . 2 3 . . . . 4 Classes Destroyed 23 | . 6 . 7 . . 2 . . . . . . . . . 1 2 1 3 . 1 Worker 27 | . 2 . 6 . . 4 5 . . . . . . . . 5 . 1 . 1 3 Builder 20 | . 2 . 4 1 1 3 1 2 . . . 1 . . . 2 . 1 2 . . Tunneler 13 | . . . 2 1 1 2 3 . . . . . . . . 1 . . . 3 . Hauler 18 | . 2 . 5 . 1 5 2 1 . . . 1 . . . . . . . 1 . Recycler 42 | . . . 12 1 4 10 3 3 2 . . . . . . 6 . . . . 1 Mechanic 4 | . . . 1 . . . . . . . . . . . . . . . 1 . 2 Operator 22 | . 2 . 2 . 2 . . 2 2 . 9 1 . . . 1 . 1 . . . Watcher 16 | . . . 3 . 1 2 1 2 . 1 . . . . . 2 . 1 1 . 2 Swarmer 69 | . 6 7 4 3 11 3 3 . 3 . . . . . . 12 2 . 5 . 10 Saboteur 2 | . . . . . . . . . . . . . . . . . . . 1 . 1 Grunt 135 | . 7 2 19 . 13 11 8 3 8 . . . . . 5 9 . 7 9 8 26 Brawler 5 | . . . 2 . 1 . . . . . . . . . . . . . . . 2 Duelist 9 | . . . 1 . . 1 . . . . . . . . . . . 1 3 . 3 Protector 2 | . . . . . . . . . . . . . . . . . . . . . 2 Sentry 41 | . . . 9 . 7 2 4 2 5 . . . 1 . . 3 . . 4 2 2 Specialist 4 | . . . . . . . . . . . . . . . . . . . 2 2 . Hunter 26 | . . . . . . 4 1 2 2 . . . . . . 6 . 2 2 2 5 Programmer 76 | . . . . . . 7 7 2 . . . 1 . . 1 24 . 9 11 9 5 Heavy 3 | . . . . . . . . . . . . . . . . . . . 1 2 . Behemoth 1 | . . . . . . . . . . . . . . . . 1 . . . . . Cetus Guard 2 | . . . . . . . . . . 2 . . . . . . . . . . . S7 Guard 1 | . . . . . . . . . . . . . . . . . . . 1 . . M Guard 2 | . . . . . . . . . . . . . . . . . . . . . 2 Combat Programmer 2 | . . . . . . . . . . . . . . . . . . . . . 2 Striker 1 | . . . . . . . . . . . . . . . . . 1 . . . . Fortress 1 | . . . . . . . . . . . . . . . . . . 1 . . . Savage 1 | . . . . . . . . . 1 . . . . . . . . . . . . Guerrilla 1 | . . . . . . . . . . 1 . . . . . . . . . . . Knight 1 | . . . . . . . . . . . . . . . . . 1 . . . . Best Kill Streak 16 | . 5 3 9 6 7 3 4 3 4 1 5 1 1 . 5 5 1 4 7 16 8 Combat Bots Only 9 | . 3 3 6 3 6 3 3 2 4 1 . 1 1 . 5 5 1 4 6 9 8 Max Kills in Single Turn 5 | . 4 2 5 1 3 1 2 1 1 1 1 1 1 . 1 2 1 2 2 1 2 Gunslinging 1 | . . . . . . . . . . . . . . . . . . 1 . . . Exploded 5 | . 2 2 5 . 3 1 2 . . . . . . . 1 2 . . . . 1 Melee 1 | . . . 1 1 1 1 1 1 1 1 . 1 1 . 1 1 . . . . . Uniques/NPCs Destroyed 2 | . . . . . . . . . . . . . . . . . . . . . 2 MAIN.C Shell (-1/Command) MAIN.C (-1/Command) Combat | -11 -10 -10 -9 -9 -8 -7 -6 -5 -5 -5 -5 -4 -4 -4 -3 -3 -2 -2 -2 -1 -1 -------- Run | Yrd Mat Min Mat Min Mat Fac Fac Fac Ext Cet Arc Fac Upp War Pro Res Res Qua Sec Acc Com Hostile Shots Fired 3081 | . 64 37 121 16 167 283 294 87 99 47 2 15 6 8 36 672 11 109 280 206 521 Missed 799 | . 17 16 24 4 37 69 87 21 26 14 1 3 3 1 14 200 1 21 73 50 117 Intercepted 5 | . . . . . . . . . . . . . . . . . . . . . 5 Hits 2282 | . 47 21 97 12 130 214 207 66 73 33 1 12 3 7 22 472 10 88 207 156 404 Melee 36 | . . . . . . 4 . . . . . . . . . . 5 . 13 1 13 Projectile 2246 | . 47 21 97 12 130 210 207 66 73 33 1 12 3 7 22 472 5 88 194 155 391 AOE 15 | . . . . . . . . 2 . . . . . 5 . . . . . 1 7 Critical Strikes 131 | . . 1 2 . 3 12 2 2 2 8 . 2 . 1 2 39 . 8 10 14 23 Actively Blocked 15 | . . . . . . . . . . . . . . . . 1 . . . 2 12 Part Disruptions 16 | . . . . . . 1 1 . . . . . . . . 3 . 2 2 1 6 Damage Taken 36055 | . 471 229 1253 88 2051 3151 2076 1186 1183 859 10 203 83 299 497 8281 497 2155 4107 1372 6004 Core 3267 | . 73 48 170 10 250 510 117 224 59 56 . 33 27 85 21 714 53 104 392 42 279 Absorbed by Shields 8097 | . . . . . . . 320 325 367 67 11 147 . 85 . 1999 . . 595 1067 3114 Reduced by Siege Mode 818 | . . . . . . . . . . . . . . . . . . 170 174 82 392 Redirected to Core 237 | . . . . . . . . . . . . . . . . . . 31 206 . . Redirected to Shielding 89 | . . . . . . 8 . . . . . . . . . 81 . . . . . Ignored by Resistances 4519 | . . . . . . . 29 . . . . . . . . . . . 1175 1670 1645 Regen/Repaired (Parts) 5739 | . 160 . 364 . . 326 154 . . . . . . 24 . . . 42 3554 379 736 Core Remaining (%) 61 | 100 . 51 . 55 54 27 86 . . . 66 . . . 85 45 . . 32 . 75 Volleys Fired 621 | . 67 21 16 . 12 3 3 . . 12 . . . . 5 53 16 61 126 87 139 Largest 4 | . 2 2 3 . 2 1 1 . . 1 . . . . 1 3 3 4 4 4 4 Hottest 480 | . 70 70 99 . 60 30 30 . . 81 . . . . 46 156 250 344 408 480 480 Shots Fired 1520 | . 132 40 32 . 19 3 3 . . 12 . . . . 5 79 32 175 319 231 438 Gun 604 | . 130 38 24 . 4 . . . . . . . . . . 54 15 132 167 40 . Cannon 867 | . . . . . . . . . . 12 . . . . . 22 16 43 152 191 431 Launcher 47 | . 2 2 8 . 15 3 3 . . . . . . . 5 2 . . . . 7 Special 2 | . . . . . . . . . . . . . . . . 1 1 . . . . Kinetic 206 | . 65 29 17 . 4 . . . . . . . . . . 30 . . . . 61 Thermal 1203 | . 65 1 7 . . . . . . . . . . . . 46 31 175 304 231 343 Explosive 42 | . 2 2 8 . 15 3 3 . . . . . . . . 2 . . . . 7 Electromagnetic 67 | . . 8 . . . . . . . 12 . . . . 5 . . . 15 . 27 Robot Hit Streak 38 | . 9 7 3 . 7 . . . . 3 . . . . 7 16 9 29 17 38 32 Robot Miss Streak 6 | . 5 3 3 . 1 . . . . 3 . . . . . 3 3 3 6 5 4 Penetration Max . | . . . . . . . . . . . . . . . . . . . . . . Secondary Targets 2 | . . 1 . . . . . . . . . . . . . . . 1 . . . Max Gunslinging Chain 1 | . . 1 . . . . . . . . . . . . . . . 1 . . . Shots Hit Robots 1650 | . 70 20 134 8 77 149 98 55 80 14 14 10 8 . 8 242 13 102 161 122 265 Core Hits 729 | . 37 11 43 3 40 37 34 18 17 7 7 3 3 . 11 115 5 49 90 52 147 Critical Kills 21 | . . . 7 . 1 4 2 . . . . . . . . 1 . 2 . 1 3 Critical Parts Destroyed 77 | . . . 17 1 12 23 9 3 8 . 1 . . . . 2 . . . . 1 Critical Strikes 162 | . . . 26 1 14 32 20 16 16 2 1 1 . . . 24 . 2 1 1 5 Burn 5 | . . . 1 . . . . . . . . . . . . 4 . . . . . Meltdown 6 | . . . . . . . . . . . . . . . . . . 2 . 1 3 Destroy 1 | . . . . . . . . . . . . . . . . . . . . . 1 Blast 3 | . . . . . . . . . . . . . . . . 2 . . . . 1 Corrupt 1 | . . . . . . . . . . . . . . . . . . . 1 . . Smash 92 | . . . 24 1 13 27 11 3 8 . 1 . . . . 4 . . . . . Sever 35 | . . . 1 . 1 3 9 8 8 2 . . . . . 3 . . . . . Impale 19 | . . . . . . 2 . 5 . . . 1 . . . 11 . . . . . Melee Attacks 1223 | . . . 151 11 124 240 159 83 111 7 21 12 8 1 9 271 1 14 . . . Kinetic 1 | . . . . . . . . . . . . . . . . . . 1 . . . Impact 539 | . . . 144 7 85 165 35 17 48 1 7 . 2 . 1 27 . . . . . Slashing 398 | . . . 7 4 39 60 123 41 63 6 13 10 5 . 1 26 . . . . . Piercing 284 | . . . . . . 15 1 25 . . . 2 1 1 7 218 1 13 . . . Sneak Attacks 142 | . . . 30 4 5 33 16 9 6 . 12 4 . . . 21 . 2 . . . Combat Hostiles . | . . . . . . . . . . . . . . . . . . . . . . Follow-up Attacks 255 | . . . 25 3 26 46 33 18 40 2 4 2 3 . 1 52 . . . . . Damage Inflicted 71522 | . 1037 431 6356 447 3706 5568 4634 2480 3495 523 1306 583 297 . 775 10458 517 3712 6371 5471 13355 Guns 9679 | . 893 251 133 . . . . . . . . . . . . 1013 265 2867 3244 1013 . Cannons 20890 | . . . . . . . . . . 241 . . . . . 429 131 630 3020 4295 12144 Explosions 4864 | . 141 180 722 . 1211 22 207 . . . . . . . 558 265 121 . 63 163 1211 Melee 36042 | . . . 5501 447 2495 5546 4427 2480 3495 282 1306 583 297 . 217 8751 . 215 . . . Ramming 47 | . 3 . . . . . . . . . . . . . . . . . 44 . . Kinetic 3382 | . 499 185 78 . . . . . . . . . . . . 571 . . . . 2049 Thermal 26339 | . 394 . 324 . . . . . . . . . . . . 871 396 3497 5905 5308 9644 Explosive 3962 | . 66 180 453 . 1211 22 207 . . . . . . . . 265 121 . 63 163 1211 Electromagnetic 1750 | . 75 66 . . . . . . . 241 . . . . 558 . . . 359 . 451 Impact 15937 | . . . 5390 375 1701 3882 1105 721 1324 38 166 . 58 . . 1177 . . . . . Slashing 11530 | . . . 111 72 794 1353 3297 1168 2171 244 1140 480 212 . 51 437 . . . . . Piercing 8575 | . . . . . . 311 25 591 . . . 103 27 . 166 7137 . 215 . . . Highest Corruption 57 | . . . 6 20 9 15 7 3 3 14 14 3 3 3 14 57 3 11 27 . . Average Corruption 8 | . . . 2 17 8 4 4 2 2 10 7 2 3 2 2 23 3 8 20 . . Corruption Purged 29 | . . . . . . 8 . . 3 . 18 . . . . . . . . . . Corruption Blocked . | . . . . . . . . . . . . . . . . . . . . . . Effects 601 | . . . 32 5 52 65 73 20 17 11 7 11 9 4 9 160 15 31 80 . . Message Errors 155 | . . . 8 . 13 22 12 5 7 2 2 3 2 1 2 51 2 8 15 . . Matter Fused 149 | . . . 7 3 13 15 28 3 5 2 . 2 3 2 2 32 2 11 19 . . Heat Flow Errors 69 | . . . 8 2 7 6 7 3 1 4 3 2 1 . 1 12 3 1 8 . . Energy Discharges 62 | . . . 4 . 5 9 9 2 1 . . 2 2 1 2 16 1 2 6 . . Parts Rejected 10 | . . . 1 . 1 1 1 . . . . . . . . 5 . . 1 . . Parts Fused 10 | . . . . . 1 3 . . . . 1 . . . . 4 . . 1 . . Data Loss (minor) 64 | . . . 4 . 6 7 11 3 2 . 1 1 . . 2 10 2 5 10 . . Data Loss (major) 36 | . . . . . 2 1 4 4 1 2 . 1 1 . . 13 3 2 2 . . Misfires 8 | . . . . . 2 . . . . . . . . . . 1 2 . 3 . . Alerts 10 | . . . . . 2 1 1 . . . . . . . . 4 . . 2 . . Misdirections 5 | . . . . . . . . . . 1 . . . . . 4 . . . . . Weapon Failures 23 | . . . . . . . . . . . . . . . . 8 . 2 13 . . Overload Shots . | . . . . . . . . . . . . . . . . . . . . . . Overflow Damage 7825 | . . 10 1739 203 666 1467 770 481 512 . 266 187 . . . 936 36 31 116 161 244 Projectiles 636 | . . . . . . . . . . . . . . . . 84 . 31 116 161 244 Explosions 84 | . . 10 38 . . . . . . . . . . . . . 36 . . . . Melee 7105 | . . . 1701 203 666 1467 770 481 512 . 266 187 . . . 852 . . . . . Knockbacks 71 | . . . 13 . 8 15 4 3 4 . . . . . . 14 . . 1 . 9 Impact 51 | . . . 13 . 6 15 4 3 4 . . . . . . 5 . . 1 . . Kinetic 14 | . . . . . . . . . . . . . . . . 5 . . . . 9 Secondary 6 | . . . . . 2 . . . . . . . . . . 4 . . . . . Self-Inflicted Damage 437 | . . 13 37 . . . . . . . . . . . 55 9 115 89 119 . . Shots 11 | . . 1 1 . . . . . . . . . . . 5 1 1 1 1 . . Rammed 3 | . 1 . . . . . . . . . . . . . . . . . 2 . . Targets Rammed 3 | . 1 . . . . . . . . . . . . . . . . . 2 . . Kicked . | . . . . . . . . . . . . . . . . . . . . . . Crushed . | . . . . . . . . . . . . . . . . . . . . . . Highest Temperature 386 | . 165 42 272 177 222 268 261 188 212 183 207 211 152 . 138 386 373 198 186 183 183 Average Temperature 85 | . 36 25 93 88 59 97 100 88 114 44 90 87 81 . 60 94 64 70 65 103 131 Received Heat Transfer 5185 | . 183 54 507 . 630 801 423 195 222 53 . 6 27 . 81 1019 9 81 268 176 450 Thermoelectric Energy+ 6317 | . . . . . . . . . . . . . . . . . . . 127 639 5551 Effects 3 | . . . . . . . . . 2 . . . . . . . 1 . . . . Interference 2 | . . . . . . . . . 2 . . . . . . . . . . . . Damage (minor) 1 | . . . . . . . . . . . . . . . . . 1 . . . . Siege Activations 32 | . . . . . . . . . . . . . . . . . . 6 9 6 11 Total Turns 526 | . . . . . . . . . . . . . . . . . . 119 136 89 182 Longest Duration 38 | . . . . . . . . . . . . . . . . . . 36 27 36 38 Martial Activations . | . . . . . . . . . . . . . . . . . . . . . . Shielding Activations . | . . . . . . . . . . . . . . . . . . . . . . Robots Disrupted . | . . . . . . . . . . . . . . . . . . . . . . Combat Hostiles . | . . . . . . . . . . . . . . . . . . . . . . Robots Corrupted 71 | . . . 20 1 11 16 5 4 7 1 . . . . 3 . . . 1 . 2 Combat Hostiles 51 | . . . 12 . 7 10 5 3 7 1 . . . . 3 . . . 1 . 2 Parts Fried 125 | . . . 38 6 17 25 2 5 9 1 6 . . . 5 5 . . 1 . 5 Impact Corruptions 190 | . . . 55 6 28 54 12 10 15 . 4 . . . . 6 . . . . . Robots Melted 9 | . . . . . . . . . . . . . . . . 1 . 2 1 1 4 Combat Hostiles 9 | . . . . . . . . . . . . . . . . 1 . 2 1 1 4 Parts Melted 92 | . 1 . 2 . . . . 1 . . . . . . . 11 1 14 28 15 19 Heat Transferred 25989 | . 1042 . 422 . . . . . . . . . . . . 2100 416 3663 6273 4662 7411 Parts Sabotaged 1 | . . . . . . . . . . . . . . . . . . . . 1 . Parts Stolen . | . . . . . . . . . . . . . . . . . . . . . . Parts Stripped 18 | . . . . . . . . . . . . . . . . . . 18 . . . Power Chain Reactions 1 | . . . . . . . . . . . . . . . 1 . . . . . . Alert | -11 -10 -10 -9 -9 -8 -7 -6 -5 -5 -5 -5 -4 -4 -4 -3 -3 -2 -2 -2 -1 -1 ------- Run | Yrd Mat Min Mat Min Mat Fac Fac Fac Ext Cet Arc Fac Upp War Pro Res Res Qua Sec Acc Com Maximum Alert Level 5 | . . . 3 1 2 2 1 . 2 1 . 2 . . . 2 1 2 3 4 5 Low Security (%) 50 | 100 100 100 69 . 18 21 65 100 95 95 100 33 . . . 41 54 54 . . . Level 1 22 | . . . 10 100 30 58 34 . 2 4 . 2 . . . 20 45 34 34 . . Level 2 17 | . . . 4 . 50 20 . . 2 . . 64 . . . 38 . 10 30 56 . Level 3 5 | . . . 15 . . . . . . . . . . . . . . . 34 19 27 Level 4 2 | . . . . . . . . . . . . . . . . . . . . 24 32 Level 5 . | . . . . . . . . . . . . . . . . . . . . . 17 High Security 1 | . . . . . . . . . . . . . . . . . . . . . 22 Max Security . | . . . . . . . . . . . . . . . . . . . . . . Peak Influence 2044 | . 144 146 877 389 679 505 302 147 409 225 177 540 . . . 675 373 536 1071 1254 2044 Initial 800 | . . 46 52 339 137 287 245 142 . 225 . 7 . . . . 373 3 199 633 800 Average 295 | . 22 95 224 369 409 300 152 29 88 72 105 327 . . . 318 176 190 563 782 1304 Influence Increases 15407 | . 422 260 1310 75 1156 1114 839 381 989 101 267 830 107 310 145 1645 177 917 1426 1113 1823 Destroy 0b10 Robot/C 8380 | . 260 180 700 60 640 560 460 180 600 80 80 220 60 160 120 1100 60 400 780 500 1180 Destroy 0b10 Robot/NC 855 | . 40 . 175 15 50 130 75 50 35 5 45 30 . . 5 85 . 20 20 25 50 Destroy Leader 1764 | . 64 30 206 . 164 184 156 56 56 . . 54 10 . 20 224 . 72 182 122 164 Allied During Kill 743 | . . . . . . . . . 234 10 125 277 37 60 . . . . . . . Successful Hack 266 | . 22 . 7 . 9 75 34 13 24 . . 54 . . . . . 14 . 14 . Disable Machine 855 | . 30 . 30 . . 15 15 30 . . 15 120 . . . 30 15 240 105 120 90 Destroy Structure 1539 | . 6 20 87 . 68 45 54 22 10 6 2 60 . . . 116 27 141 264 332 279 Partial Spotted 60 | . . . . . . 30 . . . . . 15 . . . . 15 . . . . Lose Combat Pursuer 945 | . . 30 105 . 225 75 45 30 30 . . . . 90 . 90 60 30 75 . 60 Influence Decreases 13242 | . 301 245 575 592 877 1246 1050 671 586 504 244 433 402 329 251 981 835 568 724 920 908 Entered New Map 3563 | . . 75 84 532 217 346 256 148 . 178 . 16 156 125 106 . 291 3 156 424 450 Time Decay 8251 | . 301 170 471 50 580 730 744 484 467 166 244 367 206 114 145 641 534 415 538 486 398 Lost Part 889 | . . . 20 10 80 170 50 39 30 40 . 10 . . . 340 . . 30 10 60 Lost Ally 384 | . . . . . . . . . 84 120 . 40 40 90 . . 10 . . . . Purge Threat 155 | . . . . . . . . . 5 . . . . . . . . 150 . . . Squads Dispatched 129 | . 3 . 4 . 6 11 12 4 5 . . 3 . . . 16 2 5 18 18 22 Investigation 22 | . . . 1 . 2 3 5 . 2 . . 2 . . . 1 . . 2 2 2 Extermination 40 | . . . . . . 7 7 3 . . . . . . . 10 . 4 3 4 2 Reinforcement 31 | . 3 . 3 . 1 1 . 1 3 . . 1 . . . 5 2 1 5 5 . Assault 22 | . . . . . . . . . . . . . . . . . . . 2 2 18 Garrison 14 | . . . . . 3 . . . . . . . . . . . . . 6 5 . Intercept . | . . . . . . . . . . . . . . . . . . . . . . Searches Triggered . | . . . . . . . . . . . . . . . . . . . . . . Construction Impeded 3 | . . . . . . . . . 1 . . . . . . . . . 1 1 . Haulers Reinforced 3 | . . . . . . 1 . . . . . . . . . 1 . . 1 . . Active Scanning Responses . | . . . . . . . . . . . . . . . . . . . . . . Cargo Convoy Interrupts 1 | . . . . . . . . . . . . . . . . 1 . . . . . Stealth | -11 -10 -10 -9 -9 -8 -7 -6 -5 -5 -5 -5 -4 -4 -4 -3 -3 -2 -2 -2 -1 -1 --------- Run | Yrd Mat Min Mat Min Mat Fac Fac Fac Ext Cet Arc Fac Upp War Pro Res Res Qua Sec Acc Com Distress Signals 58 | . . . 3 . 4 2 . . 2 1 . . . 2 . 5 9 1 3 . 26 Communications Jammed 34 | . . . . . . . . . . . . . . . . 26 . 8 . . . Distress Signals 34 | . . . . . . . . . . . . . . . . 26 . 8 . . . Times Spotted 666 | . 25 10 56 4 54 45 37 23 36 5 6 8 3 56 6 80 22 25 52 33 80 Peak Tracking Total 13 | . 4 3 5 4 7 4 5 4 5 5 2 3 1 13 5 8 11 4 5 7 8 Tactical Retreats 47 | . . 1 7 . 11 3 3 1 2 . . . . 4 . 4 4 1 3 . 3 Traps | -11 -10 -10 -9 -9 -8 -7 -6 -5 -5 -5 -5 -4 -4 -4 -3 -3 -2 -2 -2 -1 -1 ------- Run | Yrd Mat Min Mat Min Mat Fac Fac Fac Ext Cet Arc Fac Upp War Pro Res Res Qua Sec Acc Com Traps Triggered 23 | . 2 . 6 . 1 3 3 . . . . . . . . 2 . 1 2 1 2 Indirectly . | . . . . . . . . . . . . . . . . . . . . . . Trap Hack Attempts . | . . . . . . . . . . . . . . . . . . . . . . Triggered . | . . . . . . . . . . . . . . . . . . . . . . Disarmed . | . . . . . . . . . . . . . . . . . . . . . . Reprogrammed . | . . . . . . . . . . . . . . . . . . . . . . Reused . | . . . . . . . . . . . . . . . . . . . . . . Traps Extracted . | . . . . . . . . . . . . . . . . . . . . . . Installed . | . . . . . . . . . . . . . . . . . . . . . . Triggered . | . . . . . . . . . . . . . . . . . . . . . . Machines | -11 -10 -10 -9 -9 -8 -7 -6 -5 -5 -5 -5 -4 -4 -4 -3 -3 -2 -2 -2 -1 -1 ---------- Run | Yrd Mat Min Mat Min Mat Fac Fac Fac Ext Cet Arc Fac Upp War Pro Res Res Qua Sec Acc Com Machines Disabled 59 | . 2 . 2 . . 1 1 2 1 . 1 8 . . . 2 1 17 7 8 6 Max in Single Turn 2 | . 2 . 1 . . 1 1 1 . . . 1 . . . 1 1 2 1 1 1 Garrison Access 5 | . . . . . . 2 1 . . . . . . . . . 2 . . . . Machines Repaired . | . . . . . . . . . . . . . . . . . . . . . . Machines Dismantled . | . . . . . . . . . . . . . . . . . . . . . . Machines Sabotaged . | . . . . . . . . . . . . . . . . . . . . . . Overloaded Fab Kills . | . . . . . . . . . . . . . . . . . . . . . . Hacking | -11 -10 -10 -9 -9 -8 -7 -6 -5 -5 -5 -5 -4 -4 -4 -3 -3 -2 -2 -2 -1 -1 --------- Run | Yrd Mat Min Mat Min Mat Fac Fac Fac Ext Cet Arc Fac Upp War Pro Res Res Qua Sec Acc Com Machines Accessed 86 | . 2 . 8 . 5 19 12 3 8 . . 6 . . . 10 . 5 2 3 3 Terminals 59 | . 1 . 3 . 3 12 6 3 8 . . 5 . . . 7 . 3 2 3 3 Fabricators 5 | . . . . . . 2 1 . . . . 1 . . . 1 . . . . . Repair Stations 7 | . 1 . 2 . 1 2 1 . . . . . . . . . . . . . . Recycling Units 3 | . . . 1 . . . . . . . . . . . . 2 . . . . . Scanalyzers 7 | . . . 2 . 1 1 2 . . . . . . . . . . 1 . . . Garrison Access 5 | . . . . . . 2 2 . . . . . . . . . . 1 . . . Total Hacks 207 | . 7 . 18 . 10 48 37 6 23 . . 15 . . . 17 . 10 6 7 3 Successful 90 | . 6 . 12 . 4 23 19 3 9 . . 9 . . . 1 . 2 . 2 . Failed 115 | . 1 . 6 . 5 25 17 3 14 . . 6 . . . 16 . 8 6 5 3 Catastrophic 31 | . . . 2 . 2 3 3 . 2 . . 1 . . . 10 . 2 2 2 2 Database Lockouts 2 | . . . . . 1 . 1 . . . . . . . . . . . . . . Manual 66 | . 3 . 3 . 4 10 13 5 10 1 . 5 . . . 4 . 3 5 . . Terminals 133 | . 3 . 5 . 6 27 17 6 23 . . 10 . . . 13 . 7 6 7 3 Fabricators 15 | . . . . . . 5 3 . . . . 5 . . . 2 . . . . . Repair Stations 26 | . 4 . 6 . 2 7 7 . . . . . . . . . . . . . . Recycling Units 5 | . . . 3 . . . . . . . . . . . . 2 . . . . . Scanalyzers 19 | . . . 4 . 2 5 7 . . . . . . . . . . 1 . . . Garrison Access 9 | . . . . . . 4 3 . . . . . . . . . . 2 . . . Terminal Hacks 35 | . 2 . 1 . 2 7 4 3 8 . . 4 . . . . . 2 . 2 . Record 1 | . . . . . . . 1 . . . . . . . . . . . . . . Part Schematic 4 | . 2 . . . . 1 . 1 . . . . . . . . . . . . . Open Door 6 | . . . . . . . . 1 3 . . . . . . . . . . 2 . Open DSF 1 | . . . . . . . . . . . . 1 . . . . . . . . . Branch Access Points 2 | . . . . . 1 1 . . . . . . . . . . . . . . . Emergency Access Points 1 | . . . . . . . 1 . . . . . . . . . . . . . . Machine Index 1 | . . . . . . 1 . . . . . . . . . . . . . . . Terminal Index 2 | . . . . . . . . 1 . . . 1 . . . . . . . . . Unreport Threat 4 | . . . . . . . . . 3 . . . . . . . . 1 . . . Locate Traps 7 | . . . 1 . . 4 1 . 1 . . . . . . . . . . . . Recall Investigation 1 | . . . . . . . . . 1 . . . . . . . . . . . . Hauler Manifests 2 | . . . . . 1 . . . . . . 1 . . . . . . . . . Zone Layout 3 | . . . . . . . 1 . . . . 1 . . . . . 1 . . . Fabricator Hacks 10 | . . . . . . 3 2 . . . . 4 . . . 1 . . . . . Network Status 2 | . . . . . . . 1 . . . . . . . . 1 . . . . . Load Schematic 5 | . . . . . . 2 1 . . . . 2 . . . . . . . . . Build 3 | . . . . . . 1 . . . . . 2 . . . . . . . . . Repair Station Hacks 21 | . 4 . 6 . 1 6 4 . . . . . . . . . . . . . . Scan Component 11 | . 2 . 3 . 1 3 2 . . . . . . . . . . . . . . Repair 10 | . 2 . 3 . . 3 2 . . . . . . . . . . . . . . Recycling Unit Hacks 1 | . . . 1 . . . . . . . . . . . . . . . . . . Retrieve Components 1 | . . . 1 . . . . . . . . . . . . . . . . . . Scanalyzer 12 | . . . 3 . 1 2 6 . . . . . . . . . . . . . . Insert Component 3 | . . . 1 . . . 2 . . . . . . . . . . . . . . Analyze 3 | . . . 1 . . . 2 . . . . . . . . . . . . . . Retrieve Study 6 | . . . 1 . 1 2 2 . . . . . . . . . . . . . . Garrison Access Hacks 3 | . . . . . . 2 1 . . . . . . . . . . . . . . Seal Access 3 | . . . . . . 2 1 . . . . . . . . . . . . . . Unauthorized Hacks 8 | . . . 1 . . 3 2 . 1 . . 1 . . . . . . . . . Terminals 6 | . . . 1 . . 2 1 . 1 . . 1 . . . . . . . . . Assimilate 1 | . . . . . . 1 . . . . . . . . . . . . . . . Botnet 5 | . . . 1 . . 1 1 . 1 . . 1 . . . . . . . . . Fabricators 2 | . . . . . . 1 1 . . . . . . . . . . . . . . Recompile 2 | . . . . . . 1 1 . . . . . . . . . . . . . . Repair Stations . | . . . . . . . . . . . . . . . . . . . . . . Recycling Units . | . . . . . . . . . . . . . . . . . . . . . . Scanalyzers . | . . . . . . . . . . . . . . . . . . . . . . Garrison Access . | . . . . . . . . . . . . . . . . . . . . . . Data Cores Recovered 1 | . . . . . 1 . . . . . . . . . . . . . . . . Used . | . . . . . . . . . . . . . . . . . . . . . . Hacking Detections 72 | . 1 . 5 . 5 17 9 2 6 . . 5 . . . 10 . 5 2 2 3 Full Trace Events 14 | . . . . . 1 2 3 . 2 . . 2 . . . 1 . . 1 2 . Feedback Events 3 | . . . . . . . . . 1 . . . . . . 1 . . 1 . . Corruption 3 | . . . . . . . . . 1 . . . . . . 1 . . 1 . . Feedback Blocked . | . . . . . . . . . . . . . . . . . . . . . . Robot Schematics Acquired . | . . . . . . . . . . . . . . . . . . . . . . Robots Built . | . . . . . . . . . . . . . . . . . . . . . . Authchips . | . . . . . . . . . . . . . . . . . . . . . . Time . | . . . . . . . . . . . . . . . . . . . . . . Total Robot Build Rating . | . . . . . . . . . . . . . . . . . . . . . . Part Schematics Acquired 7 | . 2 . 1 . . 1 2 1 . . . . . . . . . . . . . Parts Built 5 | . . . . . . 2 . . . . . 3 . . . . . . . . . Authchips 2 | . . . . . . 1 . . . . . 1 . . . . . . . . . Time 145 | . . . . . . 73 . . . . . 72 . . . . . . . . . Total Part Build Rating 17 | . . . . . . 6 . . . . . 11 . . . . . . . . . Part Studies Acquired 6 | . . . 1 . 1 2 2 . . . . . . . . . . . . . . Parts Repaired 10 | . 2 . 3 . . 3 2 . . . . . . . . . . . . . . Time 265 | . 52 . 78 . . 77 58 . . . . . . . . . . . . . . Parts Recycled . | . . . . . . . . . . . . . . . . . . . . . . Recycled Matter . | . . . . . . . . . . . . . . . . . . . . . . Retrieved Matter . | . . . . . . . . . . . . . . . . . . . . . . Retrieved Components 2 | . . . 2 . . . . . . . . . . . . . . . . . . Parts Scanalyzed 3 | . . . 1 . . . 2 . . . . . . . . . . . . . . Part Schematics Acquired 3 | . . . 1 . . . 2 . . . . . . . . . . . . . . Parts Damaged . | . . . . . . . . . . . . . . . . . . . . . . Bothacking | -11 -10 -10 -9 -9 -8 -7 -6 -5 -5 -5 -5 -4 -4 -4 -3 -3 -2 -2 -2 -1 -1 ------------ Run | Yrd Mat Min Mat Min Mat Fac Fac Fac Ext Cet Arc Fac Upp War Pro Res Res Qua Sec Acc Com Used RIF Installer . | . . . . . . . . . . . . . . . . . . . . . . Robots Hacked 3 | . . . . . . . . . . . 1 . . . . 1 1 . . . . Non-combat 2 | . . . . . . . . . . . . . . . . 1 1 . . . . Combat 1 | . . . . . . . . . . . 1 . . . . . . . . . . Robot Hacks Applied 3 | . . . . . . . . . . . 1 . . . . 1 1 . . . . parse_system 3 | . . . . . . . . . . . 1 . . . . 1 1 . . . . Relay Couplers Released 8 | . . . . . . . . . . . . . . . . . 1 3 4 . . Machine Destruction 1 | . . . . . . . . . . . . . . . . . 1 . . . . Programmers 7 | . . . . . . . . . . . . . . . . . . 3 4 . . Fabnet Peak Effective % . | . . . . . . . . . . . . . . . . . . . . . . Robots Rewired 17 | . . . . . . . . . 12 . . . . 5 . . . . . . . Allies Hacked 1 | . . . . . . . . . . . . . . 1 . . . . . . . Hacks Repelled . | . . . . . . . . . . . . . . . . . . . . . . Allies | -11 -10 -10 -9 -9 -8 -7 -6 -5 -5 -5 -5 -4 -4 -4 -3 -3 -2 -2 -2 -1 -1 -------- Run | Yrd Mat Min Mat Min Mat Fac Fac Fac Ext Cet Arc Fac Upp War Pro Res Res Qua Sec Acc Com Total Allies 25 | . . . . . . . . . 15 5 . . . 5 . . . . . . . Largest Group 10 | . . . . . . . . . 10 7 5 5 2 5 . . . . . . . Highest-Rated Group 480 | . . . . . . . . . 409 480 480 480 177 302 . . . . . . . Highest-Rated Ally 159 | . . . . . . . . . 159 153 96 96 89 68 . . . . . . . Total Orders 13 | . . . . . . . . . . 4 . . . 4 . . 5 . . . . STAY 3 | . . . . . . . . . . . . . . 3 . . . . . . . ROAM 5 | . . . . . . . . . . 4 . . . . . . 1 . . . . FOLLOW 1 | . . . . . . . . . . . . . . 1 . . . . . . . EXPLORE 3 | . . . . . . . . . . . . . . . . . 3 . . . . RETURN 1 | . . . . . . . . . . . . . . . . . 1 . . . . Ally Attacks 250 | . . . . . . . . . 101 12 22 75 2 38 . . . . . . . Total Damage 8200 | . . . . . . . . . 2097 236 920 2939 114 1894 . . . . . . . Kills 43 | . . . . . . . . . 14 2 4 13 2 8 . . . . . . . Allies Corrupted 2 | . . . . . . . . . . . . . 1 1 . . . . . . . Allies Melted 1 | . . . . . . . . . . . . . . . . . 1 . . . . Intel | -11 -10 -10 -9 -9 -8 -7 -6 -5 -5 -5 -5 -4 -4 -4 -3 -3 -2 -2 -2 -1 -1 ------- Run | Yrd Mat Min Mat Min Mat Fac Fac Fac Ext Cet Arc Fac Upp War Pro Res Res Qua Sec Acc Com Active Infowar (turns) 23503 | . 1509 353 212 . 738 1751 3329 1268 493 286 486 1066 413 957 1021 3792 1508 1676 1528 1115 2 Optics 83 | . . . . . . . . . . . . . . . . . 83 . . . . Sensors 17965 | . . . . . . 1240 3329 1268 493 286 486 390 400 956 1021 2274 1508 1676 1528 1108 2 Terrain 6873 | . . . . . . . 1 . . . . . . . 630 2008 1508 1164 541 1021 . Seismic 1249 | . . . . . 738 511 . . . . . . . . . . . . . . . T.N.C. 2074 | . 1509 353 212 . . . . . . . . . . . . . . . . . . Machine Analysis 2 | . . . . . . . . . . . . . . . . . . 2 . . . Triangulation 1 | . . . . . . . . . . . . . . . . . . 1 . . . Cloaking 2 | . . . . . . . . . . . . . . . . 2 . . . . . Jamming 8347 | . . . . . . . . . . . . 880 355 718 . 3787 834 1638 135 . . ECM 1 | . . . . . . . . . . . . . . . . . 1 . . . . Robot Analysis Total . | . . . . . . . . . . . . . . . . . . . . . . Derelict Logs Recovered 2 | . . . . . . . . . . . . . 2 . . . . . . . . Drone Launches 4 | . . . . . . . . . . . . . . . . . 4 . . . . Drone Recoveries 2 | . . . . . . . . . . . . . . . . . 2 . . . . Exploration | -11 -10 -10 -9 -9 -8 -7 -6 -5 -5 -5 -5 -4 -4 -4 -3 -3 -2 -2 -2 -1 -1 ------------- Run | Yrd Mat Min Mat Min Mat Fac Fac Fac Ext Cet Arc Fac Upp War Pro Res Res Qua Sec Acc Com Turns Passed 33751 | 93 1743 353 2453 107 1787 3585 4005 1748 1646 405 545 1085 430 1428 1037 3792 1508 1676 1528 1268 1529 Spaces Moved 16786 | 53 890 175 1210 53 691 2054 1998 910 747 129 230 558 251 671 587 1760 1235 757 594 597 636 Core 7 | 7 . . . . . . . . . . . . . . . . . . . . . Treads 11240 | 46 890 175 354 53 691 167 760 910 747 129 230 558 251 671 587 1095 342 757 594 597 636 Legs 436 | . . . . . . . . . . . . . . . . 436 . . . . . Wheels 3981 | . . . 856 . . 1887 1238 . . . . . . . . . . . . . . Hover 1122 | . . . . . . . . . . . . . . . . 229 893 . . . . Flight . | . . . . . . . . . . . . . . . . . . . . . . Fastest Speed 39 | 50 160 160 110 160 160 108 140 160 160 160 160 160 163 163 163 47 39 152 150 150 146 Average Speed 152 | 145 160 160 142 161 207 127 166 160 161 160 160 162 163 163 163 165 82 156 153 151 159 Slowest Speed 610 | 160 240 160 320 240 240 480 560 160 162 162 160 163 163 163 163 610 160 160 155 155 240 Overloaded Moves . | . . . . . . . . . . . . . . . . . . . . . . Propulsion Burnouts . | . . . . . . . . . . . . . . . . . . . . . . Robots Hopped . | . . . . . . . . . . . . . . . . . . . . . . Potential Cave-ins 4 | . . . . . . . . . . . . . . 2 . . 2 . . . . Cave-ins Triggered 1 | . . . . . 1 . . . . . . . . . . . . . . . . Exploration Rate (%) 48 | 4 97 26 83 18 54 49 49 25 84 58 80 13 42 64 64 41 37 77 35 24 36 Regions Visited 21 Branch Regions 11 Pre-discovered Areas 1 | . . . . . . . . . . . . . 1 . . . . . . . . Known Exits Taken 15 | . . . . . . 1 1 1 1 1 1 1 1 1 1 1 1 1 1 1 . Unknown Exits Taken 6 | 1 1 1 1 1 1 . . . . . . . . . . . . . . . . Scrap Searched 4 | . . . . . . . . . . . . . 2 . 2 . . . . . . Spaces Dug 198 | . . . 2 . 9 32 33 11 1 . . 1 . 1 3 21 5 18 20 32 9 Terrain Destroyed 741 | . 4 20 102 . 70 43 53 11 1 . . 1 . 1 12 66 11 44 85 117 100 Melee 122 | . . . 2 . 9 32 33 11 1 . . 1 . 1 3 21 . 8 . . . Projectile 302 | . . . . . . . . . . . . . . . . 8 11 27 64 92 100 AOE 317 | . 4 20 100 . 61 11 20 . . . . . . . 9 37 . 9 21 25 . Terrain Rammed . | . . . . . . . . . . . . . . . . . . . . . . Walls Destroyed . | . . . . . . . . . . . . . . . . . . . . . . Machines Disabled . | . . . . . . . . . . . . . . . . . . . . . . Actions | -11 -10 -10 -9 -9 -8 -7 -6 -5 -5 -5 -5 -4 -4 -4 -3 -3 -2 -2 -2 -1 -1 --------- Run | Yrd Mat Min Mat Min Mat Fac Fac Fac Ext Cet Arc Fac Upp War Pro Res Res Qua Sec Acc Com Total 22472 | 66 1071 206 1671 60 861 2704 2478 1076 1103 307 392 718 267 1007 653 2298 1702 1109 960 803 960 Wait 2470 | 4 79 3 210 . 30 351 217 36 118 140 111 101 5 213 38 95 352 98 127 45 97 Move 16765 | 52 889 174 1209 52 690 2053 1997 909 746 128 229 557 250 670 586 1759 1234 756 594 596 635 Hop . | . . . . . . . . . . . . . . . . . . . . . . Pick Up 260 | 4 11 1 33 . 14 26 28 12 11 3 8 11 1 11 3 21 19 14 11 9 9 Fast Attach 303 | 6 8 . 13 . 2 28 15 16 6 5 9 10 . 7 . 43 31 56 26 10 12 Attach 108 | . . . 6 1 11 15 7 6 3 2 3 3 . . 3 21 3 6 5 3 10 Detach 36 | . 1 . 2 . . 3 . . . . 1 1 . . . 3 1 13 3 2 6 Swap 434 | . 8 6 30 . 11 25 50 21 18 4 5 11 5 13 9 80 7 26 40 34 31 Drop 405 | . 7 1 36 . 5 29 42 16 11 8 14 14 1 20 3 30 38 65 27 17 21 Fire 621 | . 67 21 16 . 12 3 3 . . 12 . . . . 5 53 16 61 126 87 139 Melee 858 | . . . 116 7 86 171 111 60 60 5 12 10 5 1 6 193 1 14 . . . Ram . | . . . . . . . . . . . . . . . . . . . . . . Kick . | . . . . . . . . . . . . . . . . . . . . . . Crush 2 | . 1 . . . . . . . . . . . . . . . . . 1 . . Escape Stasis 8 | . . . . . . . 8 . . . . . . . . . . . . . . Rewire 202 | . . . . . . . . . 130 . . . . 72 . . . . . . . Trap . | . . . . . . . . . . . . . . . . . . . . . . Miscellaneous . | . . . . . . . . . . . . . . . . . . . . . . Route ------- -11/Scrapyard -10/Materials (discovered 5 exits: *Mat x3 / [*Min] / [*Sub]) -10/Mines (discovered 3 exits: *Mat x2 / [*Exi]) -9/Materials (discovered 3 exits: *Mat x2 / [*Min]) -9/Mines -8/Materials -7/Factory (discovered 5 exits: *Fac x2 / Sto / *Low x2) -6/Factory (discovered 4 exits: *Fac x2 / *Low x2) -5/Factory -5/Extension (discovered 2 exits: *Fac / *Cet) -5/Cetus -5/Archives (discovered 3 exits: *Fac / [*Hub x2]) -4/Factory -4/Upper Caves -4/Warlord -3/Proximity Caves -3/Research -2/Research (discovered 2 exits: *Acc / *Qua) -2/Quarantine (discovered 3 exits: *Acc / *Sec / [*Frg]) -2/Section 7 -1/Access -1/Command (discovered 2 exits: [*Sur x2]) To Fleet Rendezvous History --------- Turn | Location | Event 6 | -11/Scrapyard | Discovered new exit (range 15) 94 | -11/Scrapyard | Entered Materials 320 | -10/Materials | Build established: Mutant 425 | -10/Materials | Discovered new exit (range 11) 442 | -10/Materials | Discovered new exit (range 16) 543 | -10/Materials | Discovered new exit (range 5) 1167 | -10/Materials | Repaired Lgt. Treads 1195 | -10/Materials | Repaired Lgt. Treads 1217 | -10/Materials | Discovered new exit (range 8) 1663 | -10/Materials | Discovered new exit (range 13) 1837 | -10/Materials | Entered Mines 2010 | -10/Mines | Deemed a non-threat by the Exiles lab entrance 2010 | -10/Mines | Discovered new exit (range 5) 2130 | -10/Mines | Discovered new exit (range 3) 2177 | -10/Mines | Discovered new exit (range 8) 2190 | -10/Mines | Entered Materials 2190 | -9/Materials | Evolved 2 slots: Propulsion x1, Weapon x1 2669 | -9/Materials | Repaired Lgt. Treads 2697 | -9/Materials | Repaired Lgt. Treads 2717 | -9/Materials | Discovered new exit (range 4) 2718 | -9/Materials | Build established: Gunner 3048 | -9/Materials | Build established: Mutant 3432 | -9/Materials | Repaired Lgt. Treads 4150 | -9/Materials | Discovered new exit (range 7) 4287 | -9/Materials | Discovered new exit (range 16) 4540 | -9/Materials | Build established: Scavenger-Mutant 4643 | -9/Materials | Entered Mines 4661 | -9/Mines | System corruption reached 10% 4706 | -9/Mines | Discovered new exit (range 8) 4750 | -9/Mines | Entered Materials 4750 | -8/Materials | Evolved 2 slots: Utility x1, Weapon x1 4916 | -8/Materials | Crushed by falling debris 4947 | -8/Materials | Lost 3 parts (2n1w) 5177 | -8/Materials | Build established: Mutant 5857 | -8/Materials | Garrison activated, responded to threat 5913 | -8/Materials | Lost 3 parts (1n2u) 6238 | -8/Materials | Discovered new exit (range 13) 6285 | -8/Materials | Build established: Scavenger-Mutant 6376 | -8/Materials | Central database locked down 6537 | -8/Materials | Entered Factory 6537 | -7/Factory | Evolved 2 slots: Propulsion x1, Utility x1 6650 | -7/Factory | Discovered new exit (range 16) 7347 | -7/Factory | Build established: Mutant 7457 | -7/Factory | Lost 6 parts (3n1u2w) 7894 | -7/Factory | Discovered new exit (range 11) 7894 | -7/Factory | Discovered new exit (range 13) 7904 | -7/Factory | Identified exit to Factory 7925 | -7/Factory | Identified exit to Lower Caves 8032 | -7/Factory | Repaired Imp. Light Armor Plating 8058 | -7/Factory | Repaired Hammer 8202 | -7/Factory | Identified exit to Storage 8476 | -7/Factory | Repaired Hammer 8560 | -7/Factory | Core integrity fell below 50% 8808 | -7/Factory | Found Prototype Launcher 8808 | -7/Factory | Identified Rocket Array 9012 | -7/Factory | Discovered exit to Factory (range 6) 9665 | -7/Factory | Fabricated Actuator Array? 9807 | -7/Factory | System corruption reached 10% 10122 | -7/Factory | Entered another Factory area 10122 | -6/Factory | Evolved 2 slots: Utility x2 10139 | -6/Factory | Build established: Scavenger-Mutant 10556 | -6/Factory | Build established: Scavenger-Gladiator 10865 | -6/Factory | Build established: Gladiator 11362 | -6/Factory | Build established: Mutant 12316 | -6/Factory | Discovered new exit (range 10) 12445 | -6/Factory | Identified exit to Factory 12503 | -6/Factory | Repaired Lgt. Treads 12537 | -6/Factory | Repaired Arm. Wheel+ 13033 | -6/Factory | Discovered new exit (range 4) 13037 | -6/Factory | Identified exit to Lower Caves 13129 | -6/Factory | Discovered exit to Lower Caves (range 12) 13138 | -6/Factory | Discovered exit to Factory (range 8) 13152 | -6/Factory | Build established: Scavenger-Mutant 13430 | -6/Factory | Central database locked down 14127 | -6/Factory | Entered another Factory area 14127 | -5/Factory | Evolved 2 slots: Propulsion x1, Utility x1 14836 | -5/Factory | Build established: Scavenger-Gladiator 15862 | -5/Factory | Discovered new exit (range 10) 15874 | -5/Factory | Identified exit to Extension 15875 | -5/Factory | Entered Extension 16316 | -5/Extension | Build established: Gladiator 16340 | -5/Extension | Rescued a captive Derelict 16572 | -5/Extension | Rescued A7 16775 | -5/Extension | Spotted B-75 Beast 16794 | -5/Extension | Spotted B-75 Beast 16794 | -5/Extension | Allies destroyed B-75 Beast 16804 | -5/Extension | Allies destroyed B-75 Beast 16845 | -5/Extension | Lost 5 allies 17071 | -5/Extension | Build established: Commander-Mutant 17415 | -5/Extension | Rescued a captive Derelict 17464 | -5/Extension | Discovered new exit (range 10) 17470 | -5/Extension | Discovered new exit (range 6) 17506 | -5/Extension | Identified exit to Cetus 17510 | -5/Extension | Identified exit to Factory 17521 | -5/Extension | Entered Cetus 17521 | -5/Cetus | Accompanied by 7 allies (A7) 17526 | -5/Cetus | Acquired a Cetus Manufacturing Module code from A7 17539 | -5/Cetus | Spotted Cetus Guard 17539 | -5/Cetus | Spotted Cetus Guard 17542 | -5/Cetus | Spotted Cetus Guard 17542 | -5/Cetus | Spotted Cetus Guard 17550 | -5/Cetus | Allies destroyed Cetus Guard 17553 | -5/Cetus | Allies destroyed Cetus Guard 17566 | -5/Cetus | Extracted ID and sensor layout for unrecognized location from A7's data core 17580 | -5/Cetus | Destroyed Cetus Guard 17591 | -5/Cetus | Lost 7 allies 17618 | -5/Cetus | Destroyed Cetus Guard 17625 | -5/Cetus | Lost 4 parts (3n1w) 17631 | -5/Cetus | System corruption reached 10% 17706 | -5/Cetus | Started Cetus Manufacturing Module 17731 | -5/Cetus | Manufactured an Enhanced Grunt 17756 | -5/Cetus | Manufactured an Enhanced Grunt 17781 | -5/Cetus | Manufactured an Enhanced Grunt 17806 | -5/Cetus | Manufactured an Enhanced Grunt 17831 | -5/Cetus | Manufactured an Enhanced Grunt 17869 | -5/Cetus | Build established: Scavenger-Mutant 17889 | -5/Cetus | Discovered new exit (range 16) 17911 | -5/Cetus | Identified exit to Archives 17926 | -5/Cetus | Entered Archives 17926 | -5/Archives | Accompanied by 5 allies 18052 | -5/Archives | Discovered new exit (range 15) 18072 | -5/Archives | Discovered exit to Factory (range 15) 18116 | -5/Archives | Discovered new exit (range 15) 18471 | -5/Archives | Entered Factory 18471 | -4/Factory | Accompanied by 5 allies 18471 | -4/Factory | Evolved 2 slots: Power x1, Utility x1 18570 | -4/Factory | Identified exit to DSF 18760 | -4/Factory | Build established: Scavenger-Gladiator 18787 | -4/Factory | Fabricated Weapon Mount (x2) 18819 | -4/Factory | Fabricated Huge Storage Unit (x1) 19072 | -4/Factory | Discovered new exit (range 9) 19087 | -4/Factory | Identified exit to Upper Caves 19556 | -4/Factory | Entered Upper Caves 19556 | -4/Upper Caves | Accompanied by 3 allies 19749 | -4/Upper Caves | Learned location of Armory (-4) 19776 | -4/Upper Caves | Attracted the attention of an 0b10 outpost 19877 | -4/Upper Caves | Learned Research garrison access intel 19983 | -4/Upper Caves | A Derelict revealed a hidden shortcut to "reach the base" 19985 | -4/Upper Caves | Identified exit to Warlord 19986 | -4/Upper Caves | Entered Warlord 20040 | -4/Warlord | System corruption cleaned by Quarantine Array 20469 | -4/Warlord | Met Warlord 20494 | -4/Warlord | Warlord's base attacked by MAIN.C 20749 | -4/Warlord | Lost 3 allies 20844 | -4/Warlord | Warlord forces counterattacked 20858 | -4/Warlord | Spotted Striker 20925 | -4/Warlord | Spotted B-86 Titan 20942 | -4/Warlord | Spotted Striker 20956 | -4/Warlord | Allies destroyed Striker 20978 | -4/Warlord | Lost 12 allies 20993 | -4/Warlord | Spotted Striker 21017 | -4/Warlord | Spotted Executioner 21021 | -4/Warlord | Allies destroyed Executioner 21054 | -4/Warlord | Spotted Striker 21054 | -4/Warlord | Found Corrupted Prototype Processor 21059 | -4/Warlord | Lost 7 allies 21080 | -4/Warlord | Spotted Executioner 21147 | -4/Warlord | Lost 12 allies 21169 | -4/Warlord | Warlord base infiltrated, sounded retreat 21217 | -4/Warlord | Lost 4 allies 21332 | -4/Warlord | Lost 4 allies 21346 | -4/Warlord | Spotted Striker 21354 | -4/Warlord | Spotted Striker 21378 | -4/Warlord | Discovered new exit (range 13) 21392 | -4/Warlord | Lost 11 allies 21394 | -4/Warlord | Identified exit to Proximity Caves 21414 | -4/Warlord | Entered Proximity Caves 22298 | -3/Proximity Caves | Discovered new exit (range 7) 22414 | -3/Proximity Caves | Identified exit to Research 22420 | -3/Proximity Caves | Identified Exp. Core Analyzer 22437 | -3/Proximity Caves | System corruption reached 10% 22451 | -3/Proximity Caves | Entered Research 22451 | -3/Research | Evolved 2 slots: Propulsion x1, Utility x1 22452 | -3/Research | Loaded intel: 4 garrison access locations 22484 | -3/Research | Watched by a mysterious "MATRIX" hacker 22957 | -3/Research | Found Prototype Device 22957 | -3/Research | Identified Exp. Focal Shield 23067 | -3/Research | Spotted B-86 Titan 23139 | -3/Research | Destroyed B-86 Titan 23463 | -3/Research | System corruption reached 10% 23527 | -3/Research | Lost 6 parts (1p1n2u2w) 24308 | -3/Research | Cargo convoy interrupted 24485 | -3/Research | Lost 4 parts (1p2n1u) 24972 | -3/Research | Lost 5 parts (1p3u1w) 25104 | -3/Research | Discovered new exit (range 4) 25111 | -3/Research | Identified exit to Research 25213 | -3/Research | System corruption reached 30% 25738 | -3/Research | Lost 3 parts (1n2w) 26018 | -3/Research | Core integrity fell below 50% 26021 | -3/Research | Build established: Scavenger-Mutant 26029 | -3/Research | Lost 4 parts (1n2u1w) 26243 | -3/Research | Entered another Research area 26243 | -2/Research | Warlord forces began assault on 0b10 26243 | -2/Research | Evolved 2 slots: Propulsion x1, Utility x1 26309 | -2/Research | Met up with Warlord 26353 | -2/Research | Research machine network offline 26568 | -2/Research | Borebot progress halted 26718 | -2/Research | Found Prototype Hackware 26718 | -2/Research | Identified Exp. System Shield 26730 | -2/Research | Spotted B-90 Cyclops 26764 | -2/Research | Found Prototype Processor 26764 | -2/Research | Identified Exp. Melee Analysis Suite 26769 | -2/Research | Found Prototype Device 26769 | -2/Research | Identified Adv. Kinecellerator 26810 | -2/Research | Build established: Scavenger-Scout 26908 | -2/Research | Destroyed OV-XWH(K) 26933 | -2/Research | Discovered new exit (range 18) 26964 | -2/Research | Spotted Striker 26978 | -2/Research | Spotted Executioner 27001 | -2/Research | Met DD-05H 27117 | -2/Research | Borebot progress halted 27146 | -2/Research | Build established: Scavenger-Assassin 27152 | -2/Research | Lost 4 allies 27213 | -2/Research | Borebot progress halted 27257 | -2/Research | Spotted Striker 27276 | -2/Research | Destroyed Striker 27389 | -2/Research | Found Prototype Processor 27389 | -2/Research | Identified Spectral Analyzer 27404 | -2/Research | Discovered new exit (range 16) 27466 | -2/Research | Identified exit to Quarantine 27751 | -2/Research | Given Cave Seal Controls access code 27751 | -2/Research | Entered Quarantine 27760 | -2/Quarantine | Found Alien Artifact 27760 | -2/Quarantine | Identified Core Reset Matrix 27760 | -2/Quarantine | Used Core Reset Matrix 27764 | -2/Quarantine | Detected hypermatrix surge 27764 | -2/Quarantine | Sensed 10 artifacts in vicinity 27791 | -2/Quarantine | Found Prototype Processor 27791 | -2/Quarantine | Identified Exp. Core Analyzer 27938 | -2/Quarantine | Lost 5 allies 28149 | -2/Quarantine | Found Phase Redirector 28161 | -2/Quarantine | Build established: Assassin 28243 | -2/Quarantine | Found Sigix Broadsword 28322 | -2/Quarantine | Found Core Cannon 28494 | -2/Quarantine | Found Subatomic Replicator 28554 | -2/Quarantine | System corruption reached 10% 28611 | -2/Quarantine | Cryocooling Duct disabled 28626 | -2/Quarantine | Ambient heat levels rising (+20) 28626 | -2/Quarantine | Non-combat units ordered to evacuate 28632 | -2/Quarantine | Found Phase Armor 28740 | -2/Quarantine | Found Core Stripper 28806 | -2/Quarantine | Discovered new exit (range 16) 29244 | -2/Quarantine | Spotted Fortress 29250 | -2/Quarantine | Destroyed Fortress 29273 | -2/Quarantine | Found Prototype Device 29273 | -2/Quarantine | Identified Exp. EM Shield 29276 | -2/Quarantine | Found Prototype Device 29276 | -2/Quarantine | Identified Thermal Barrier 29286 | -2/Quarantine | Found Prototype Device 29286 | -2/Quarantine | Identified Exp. Force Field 29295 | -2/Quarantine | Found Unknown Protection 29295 | -2/Quarantine | Identified Hvy. Insulated Plating 29300 | -2/Quarantine | Found Prototype Protection 29300 | -2/Quarantine | Identified Centrium Heavy Armor Plating 29415 | -2/Quarantine | Discovered new exit (range 5) 29415 | -2/Quarantine | Discovered new exit (range 6) 29419 | -2/Quarantine | Identified exit to Section 7 29427 | -2/Quarantine | Entered Section 7 29428 | -2/Section 7 | Detected hypermatrix surge 29428 | -2/Section 7 | Sensed 26 artifacts in vicinity 29489 | -2/Section 7 | Found Integrity Redistributor 29617 | -2/Section 7 | Spotted S7 Guard 29643 | -2/Section 7 | Found Integrated Thermoelectric Network 29643 | -2/Section 7 | Installed Integrated Thermoelectric Network, gained heat-energy exchange potential 29717 | -2/Section 7 | Destroyed S7 Guard 29744 | -2/Section 7 | Found Corrupted Prototype Protection 29744 | -2/Section 7 | Identified Hvy. Regenerative Plating 29832 | -2/Section 7 | Found Integrated Mediator 29832 | -2/Section 7 | Installed Integrated Mediator, increased core attachment efficiency 29858 | -2/Section 7 | Garrison activated, responded to threat 30131 | -2/Section 7 | Found Integrated Reactor 30131 | -2/Section 7 | Installed Integrated Reactor, increased core energy generation (+10) 30177 | -2/Section 7 | First assault squad dispatched 30373 | -2/Section 7 | Garrison activated, responded to threat 30404 | -2/Section 7 | Used Integrity Redistributor, redistributed integrity from core (-430) 30405 | -2/Section 7 | Core integrity fell below 50% 30826 | -2/Section 7 | Discovered new exit (range 8) 30849 | -2/Section 7 | Spotted S7 Guard 30869 | -2/Section 7 | Found Core Membrane 30869 | -2/Section 7 | Installed Core Membrane, gained immunity to corruption 30931 | -2/Section 7 | Identified exit to Access 30955 | -2/Section 7 | Entered Access 30955 | -1/Access | Evolved 2 slots: Power x1, Utility x1 31080 | -1/Access | Found Prototype Device 31080 | -1/Access | Identified Exp. Shield Generator 31090 | -1/Access | Found Exp. Shield Generator 31202 | -1/Access | Build established: Alien-Skirmisher 31205 | -1/Access | First assault squad dispatched 31688 | -1/Access | Garrison activated, responded to threat 31778 | -1/Access | Destroyed 9 combat bots 32073 | -1/Access | Garrison activated, responded to threat 32115 | -1/Access | Discovered new exit (range 16) 32222 | -1/Access | Identified exit to Command 32223 | -1/Access | Entered Command 32723 | -1/Command | First assault squad dispatched 32744 | -1/Command | Build established: Scavenger-Tank 33171 | -1/Command | High security lockdown imminent 33192 | -1/Command | Destroyed 8 combat bots 33251 | -1/Command | High security lockdown engaged 33329 | -1/Command | Spotted Combat Programmer 33330 | -1/Command | Spotted Combat Programmer 33330 | -1/Command | Destroyed Combat Programmer 33335 | -1/Command | Destroyed Combat Programmer 33341 | -1/Command | Spotted M Guard 33341 | -1/Command | Spotted M Guard 33360 | -1/Command | Destroyed M Guard 33375 | -1/Command | Destroyed M Guard 33375 | -1/Command | All MAIN.C guards destroyed 33413 | -1/Command | Found Corrupted Prototype Reactor 33413 | -1/Command | Identified Zero-point Reactor 33418 | -1/Command | Found Corrupted Zero-point Reactor 33422 | -1/Command | Found Corrupted Hvy. Regenerative Plating 33425 | -1/Command | Found Corrupted Prototype Launcher 33425 | -1/Command | Identified Hellfire Missile Launcher 33497 | -1/Command | Met MAIN.C 33519 | -1/Command | Destroyed MAIN.C Shell 33521 | -1/Command | MAIN.C activated Command garrisons 33524 | -1/Command | 0b10 Conduit disabled 33555 | -1/Command | Destroyed MAIN.C 33579 | -1/Command | Lost 3 parts (2n1w) 33598 | -1/Command | Discovered new exit (range 32) 33598 | -1/Command | Discovered new exit (range 95) 33598 | -1/Command | Extracted map data and part IDs from MAIN.C's data core 33644 | -1/Command | Used Subatomic Replicator to replicate Hds. Centrium Heavy Treads 33685 | -1/Command | Spotted B-99 Colossus 33692 | -1/Command | Spotted B-99 Colossus 33752 | *** | Heading to fleet! Last Messages --------------- 33733_ Penetrated by Slug. 33733_ Exp. Force Field destroyed. 33733_ Slug penetrates Terminal. 33736_ Penetrated by Slug. 33736_ Slug penetrates Wall. 33736_ Penetrated by Slug. 33737_ Slug penetrates Wall. 33737_ Penetrated by Slug. 33737_ Slug penetrates Wall. 33740_ Penetrated by Slug. 33740_ Slug penetrates Wall. 33740_ Penetrated by Slug. 33743_ Acquired 5 matter. 33744_ Slug penetrates Wall. 33744_ Penetrated by Slug. 33744_ Slug penetrates Wall. 33744_ Penetrated by Slug. 33745_ Slug penetrates Wall. 33745_ Penetrated by Slug. 33745_ Slug penetrates Wall. Map ----- +----------------------------------------------------+ | #???# ### #### #??# #????? | | ##### T"# #??# #??# #????? | | ""# #??# #??# #????? | | ### #??#%#??# #????? | | ### #?#########??#%#??# #????? | | #?#"" #?????########+##?# #????? | | #?#"" ########## #?# #????? | | #?#"" # # #?# #????? | | #?#T!%= / # #?# #????? | | #?#""% #### # !! + #?# #????? | | #?#"" ## # !! # #?# #????? | | #?#"" ## # ! # #?# #????? | | #?# "### # *# #?# #?#### | | ##" "#?# # # #?# #?#??? | | #?# ######+#######+#####?# #?#?## | | ###+####?# #???# ##### #?#?#" | | # ### #???# T" #?#?#" | | + + #???# " #?#?#" | | != # #####???# #?#?#" | | %!%! # #???????# ###### #?#?#" | | %= *+ #???????## ##????# #?#?#" | | ###### %# #????????# ####### #?#?#" | | ?????##"####=########????????# # = # #?#?# | | ??????# # #?????????#####?# # # #?#?# | | ??????# # #?????????# #?# # # #?#?# | | ####### # ########### @ #?# # # #?#?#" | | ""# ## " #?# # # #?#?#" | | + ## + #?# " " #?#?# | | + ## " ######## # # #?#?# | | + ## ; ####"##%% "##"#"# ##### | | ""# ## # !%[=![% | | ### ## # % *=!=[%*% % % % | | ??# ####### = !%%! [! | | ### #???### = ""%#####+############ | | # #???# """" "## #??#?# | | ! # #???# """ % "# # ####?# | | # ####""" "" %"""### ""##?## | | # !%[ "" ### "" ""##??? | | # =%[ = = # """" ""##### | | + ! %! # """" Y"#???? | | # % # "" ""#???? | | = # %!% ! # ""#???? | | # % %!% %% !% # ""#???? | | +## ### ###"###"#"##" " ###???? | | % #?# #? #??####?## *% # #?????? | | ###+############# # ^ #?????? | | % ## %[ # # ###########+##?????? | | ## = # # #] ## #??????? | | ## %[% # # # ## #??????? | | ! # "" %!# ! # # ""## #??????? | +----------------------------------------------------+ Best States ------------- Heat Dissipation 180 Coolant Potential 100 Energy Generation 91 Energy Capacity 1750 Matter Stores 539 Matter Capacity 600 Sight Range 23 Robot Scan Range 16 Terrain Scan Range 24 Terrain Scan Density 210 Jamming Range 16 EM Shielding 4 Armor Coverage 1200 Resistance: KI 25 Resistance: TH 50 Resistance: EM 75 Propulsion Shielding 66 Utility Shielding 66 Weapon Shielding 66 Point Defense Rating 240 Weapon Cycling 25 Melee Speed Boost 40 Evasion (%) 57 Targeting Accuracy 20 Melee Accuracy 12 Core Analysis 8 Recoil Reduction 7 Energy Filtering 30 Kinecelleration 50 Offensive Hacking 20 Defensive Hacking 16 Authchip Count 1 Item Schematics ----------------- None Robot Schematics ------------------ None Fabricated ------------ Actuator Array | x2 | -7/Factory | Authchip Weapon Mount | x2 | -4/Factory | Authchip Huge Storage Unit | x1 | -4/Factory Repaired ---------- Lgt. Treads | 32% | -10/Materials Lgt. Treads | 53% | -10/Materials Lgt. Treads | 2% | -9/Materials Lgt. Treads | 34% | -9/Materials Lgt. Treads | 3% | -9/Materials Imp. Light Armor Plating | 10% | -7/Factory Hammer | 15% | -7/Factory Hammer | 21% | -7/Factory Lgt. Treads | 39% | -6/Factory Arm. Wheel | 31% | -6/Factory Studied --------- None Alien Tech Used ----------------- Core Reset Matrix Phase Armor Core Stripper Sigix Broadsword Integrated Thermoelectric Network Integrated Mediator Integrated Reactor Integrity Redistributor Core Membrane Core Cannon Subatomic Replicator Achievements -------------- None Challenges ------------ None Game ------ Seed NeutrinoFlakPerforator Manual? 0 Play Time 04:21:41 Cumulative 376.7 hours Start 2026.08.27 @ 04:39:44 End 2026.08.27 @ 22:48:10 Sessions 21 Manual Loads 0 Difficulty Rogue Special Mode None Game No. 102 Rogue 101 Adventurer 1 Explorer 0 Win Type 2 Total 36 Types 9/7/8/0/0/1/10/0/0/1 Lore% 66 Gallery% 73 Achievement% 62 Wizard Run 0 Options --------- Layout 0 ASCII 0 Keyboard 0 Movement Mouse Keybinds 0 Fullscreen 1 Font 24/Terminus Map View 76x50 Zoom Use 0% Tactical HUD 1 Map Filters NONE Filters NONE Steam 1 RUN: aa1fdae8-9352-41db-88e5-f249957da323